Cogmind - Beta 16 @@@ ROGUE MODE // 2025.11.01 @ 08:11:38 Player: shapeshifter Result: Destroyed by 8R-AWN with 8R-AWN's Boregun Performance ------------- Evolutions (1) 500 Regions Visited (5) 1000 Robots Destroyed (71) 355 Value Destroyed (1526) 1526 Prototype IDs (39) 780 Alien Tech Used (0) 0 Bonus (300) 300 TOTAL SCORE: 4461 Bonus ------- Aligned with FarCom 300 Cogmind --------- Core Integrity 0/400 Matter 194/300 Energy 265/265 System Corruption 2% Temperature Cool (0) Movement Core (500) Ox9 Location -9/Exiles Parts ------- > --- POWER (1) -------- Improved Ion Engine > --- PROPULSION (2) --- (None) > --- UTILITY (4) ------ Large Storage Unit > --- WEAPON (2) ------- Light Assault Rifle > --- INVENTORY (15) --- Latent Energy Streamer AWS/Gauss Mini Grenade Launcher Deploy-a-Sentry Deploy-a-Sentry Deploy-a-Sentry Peak State ------------ > --- POWER ------------ Heavy Ion Engine > --- PROPULSION ------- Light Treads Light Treads > --- UTILITY ---------- Improved Heat Sink Large Storage Unit Trap Scanner Hardened Medium Armor Plating > --- WEAPON ----------- Precision Beam Rifle Precision Beam Rifle > --- INVENTORY -------- Improved Ion Engine Compact Wheel High-capacity Matter Pod Advanced Weight Redist. System Hardened Medium Armor Plating Hardened Medium Armor Plating Precision Beam Rifle Light Assault Rifle Light Assault Rifle Heavy Assault Rifle Heavy Assault Rifle Heavy Assault Rifle Autogun Mini Grenade Launcher Datajack [Rating: 26] Favorites ----------- Power Ion Engine Engine Ion Engine Propulsion Light Treads Treads Light Treads Wheel Compact Wheel Utility Hardened Medium Armor Plating Device Trap Scanner Storage Large Storage Unit Protection Hardened Medium Armor Plating Weapon Precision Beam Rifle Energy Gun Precision Beam Rifle Energy Cannon Latent Energy Streamer Ballistic Gun Light Assault Rifle Launcher Mini Grenade Launcher Special Melee Weapon Datajack Build | -11 -10 -10 -9 -9 -9 ------- Run | Yrd Mat Min Mat Min Exi Slots Evolved 2 | . . . 2 . . Power . | . . . . . . Propulsion . | . . . . . . Utility 2 | . . . 2 . . Weapon . | . . . . . . Parts Attached 46 | 8 7 2 14 3 12 Power 4 | 1 . . 2 1 . Engine 4 | 1 . . 2 1 . Core . | . . . . . . Reactor . | . . . . . . Propulsion 10 | 2 2 1 3 1 1 Treads 8 | 2 . 1 3 1 1 Leg . | . . . . . . Wheel 2 | . 2 . . . . Hover . | . . . . . . Flight . | . . . . . . Utility 11 | 2 2 1 4 . 2 Device 5 | 1 1 1 2 . . Storage 2 | 1 1 . . . . Processor . | . . . . . . Hackware . | . . . . . . Protection 4 | . . . 2 . 2 Artifact . | . . . . . . Weapon 21 | 3 3 . 5 1 9 Energy Gun 7 | 1 . . 5 1 . Energy Cannon 1 | . . . . . 1 Ballistic Gun 11 | 2 3 . . . 6 Ballistic Cannon . | . . . . . . Launcher 1 | . . . . . 1 Special Weapon . | . . . . . . Impact Weapon . | . . . . . . Slashing Weapon . | . . . . . . Piercing Weapon . | . . . . . . Special Melee Weapon 1 | . . . . . 1 Unidentified Prototypes 2 | . . . 2 . . Parts Lost 17 | . 3 1 2 1 10 Power 2 | . . . 1 1 . Propulsion 5 | . 1 1 1 . 2 Utility 4 | . 1 . . . 3 Weapon 6 | . 1 . . . 5 Highest Loss Streak 8 | . 3 1 1 1 8 To Critical Strikes 3 | . . . . . 3 Average Backups 11 | 3 6 9 14 14 11 Power 1 | . 1 1 . . 2 Propulsion 1 | 1 1 . . 2 . Utility 2 | . 1 1 4 3 . Weapon 6 | . 1 5 6 7 7 Tool/Special . | . . . . . . Unused Backups 23 | . 2 . 10 . 11 Power 3 | . . . . . 3 Propulsion . | . . . . . . Utility 6 | . . . 1 . 5 Weapon 14 | . 2 . 9 . 3 Tool/Special . | . . . . . . Average Slot Usage (%) 98 | . 99 98 98 99 94 Engine 11 | . 14 14 10 10 11 Treads 19 | . 21 8 17 22 18 Wheel 3 | . 6 18 4 . 1 Device 16 | . 14 14 20 22 10 Storage 11 | . 14 14 11 11 11 Protection 10 | . . . 11 11 19 Energy Gun 12 | . . . 20 22 5 Ballistic Gun 9 | . 28 28 1 . 11 Peak Build Rating 26 | 7 8 10 26 24 25 Average Rating 18 | 4 7 9 21 23 22 On Entrance 12 | . 7 8 10 23 24 Avg Prop Armor Cover (%) 9 | . . 14 8 . 7 Naked Turns . | . . . . . . Heaviest Build 51 | 13 28 28 48 42 51 Greatest Support 40 | 40 40 32 40 40 40 Greatest Overweight (x) 3 | . . 1 2 1 3 Average Overweight (x) . | . . . . . 1 Largest Inventory Capacity 15 | 8 15 15 15 15 15 Average Capacity 13 | 6 8 15 15 15 15 Most Carried 15 | 5 9 10 15 15 15 Average Carried 12 | 3 6 9 14 14 13 Final Capacity 15 | 8 15 15 15 15 15 Final Carried 15 | 4 9 9 15 15 7 Class Distribution -------------------- 100% | Mutant Dominant Class ---------------- Mutant | -10/Materials Mutant | -10/Mines Mutant | -9/Materials Mutant | -9/Mines Mutant | -9/Exiles Resources | -11 -10 -10 -9 -9 -9 ----------- Run | Yrd Mat Min Mat Min Exi Matter Collected 1256 | 281 395 36 175 30 339 Remotely . | . . . . . . Salvage Created 2069 | 112 379 88 1115 364 11 Parts 134 | 5 34 6 61 28 . Haulers Intercepted 4 | . 1 . 3 . . Recyclers Shooed 3 | . 2 . 1 . . Parts Field Recycled . | . . . . . . Retrieved Matter . | . . . . . . Parts Self-Destructed . | . . . . . . Prevented . | . . . . . . Parts Restored . | . . . . . . Kills | -11 -10 -10 -9 -9 -9 ------- Run | Yrd Mat Min Mat Min Exi Combat Hostiles Destroyed 58 | . 10 2 26 16 4 Guns 55 | . 10 2 26 16 1 AOE 3 | . . . . . 3 Classes Destroyed 11 | 3 5 . 2 . 1 Worker 2 | 1 1 . . . . Builder 1 | . . . 1 . . Tunneler 1 | 1 . . . . . Hauler 4 | . 1 . 3 . . Recycler 2 | 1 . . 1 . . Operator 1 | . 1 . . . . Watcher 6 | . 2 . 4 . . Swarmer 26 | . 6 . 9 11 . Grunt 21 | . 4 2 10 5 . Sentry 7 | . . . 7 . . Assembled 4 | . . . . . 4 Best Kill Streak 5 | 2 3 2 5 4 4 Combat Bots Only 5 | . 3 2 5 4 4 Max Kills in Single Turn 2 | 1 2 1 2 2 1 Gunslinging 1 | . 1 . 1 1 . Exploded 1 | . . . . . 1 Melee . | . . . . . . Uniques/NPCs Destroyed . | . . . . . . Combat | -11 -10 -10 -9 -9 -9 -------- Run | Yrd Mat Min Mat Min Exi Hostile Shots Fired 378 | . 83 22 100 56 117 Missed 96 | . 20 7 32 15 22 Hits 282 | . 63 15 68 41 95 Melee 2 | . . . . . 2 Projectile 280 | . 63 15 68 41 93 Critical Strikes 41 | . . . 1 . 40 Damage Taken 3733 | . 694 196 777 368 1698 Core 643 | . 176 58 127 33 249 Absorbed by Shields . | . . . . . . Core Remaining (%) 53 | 100 . 6 . . . Volleys Fired 243 | 5 66 10 70 30 62 Largest 2 | 2 2 2 2 2 2 Hottest 130 | 40 40 40 130 122 80 Shots Fired 463 | 10 132 20 140 60 101 Gun 453 | 10 132 20 140 60 91 Cannon 1 | . . . . . 1 Launcher 9 | . . . . . 9 Special . | . . . . . . Kinetic 258 | 10 132 20 5 . 91 Thermal 195 | . . . 135 60 . Explosive 9 | . . . . . 9 Electromagnetic 1 | . . . . . 1 Robot Hit Streak 18 | 7 7 9 18 12 15 Robot Miss Streak 8 | 1 7 1 8 3 3 Penetration Max . | . . . . . . Secondary Targets 12 | . 4 1 3 4 . Max Gunslinging Chain 1 | . 1 1 1 1 . Shots Hit Robots 334 | 9 74 18 109 43 81 Core Hits 178 | 5 35 6 91 17 24 Critical Kills 1 | 1 . . . . . Critical Parts Destroyed . | . . . . . . Critical Strikes 7 | 1 . . 2 4 . Burn 6 | . . . 2 4 . Destroy 1 | 1 . . . . . Melee Attacks 5 | . . . . . 5 Impact . | . . . . . . Slashing . | . . . . . . Piercing . | . . . . . . Sneak Attacks 5 | . . . . . 5 Combat Hostiles . | . . . . . . Follow-up Attacks . | . . . . . . Damage Inflicted 4478 | 66 629 154 1630 728 1271 Guns 4121 | 66 629 154 1630 728 914 Cannons . | . . . . . . Explosions 357 | . . . . . 357 Melee . | . . . . . . Ramming . | . . . . . . Kinetic 1789 | 66 629 154 26 . 914 Thermal 2332 | . . . 1604 728 . Explosive 352 | . . . . . 352 Electromagnetic 5 | . . . . . 5 Impact . | . . . . . . Slashing . | . . . . . . Piercing . | . . . . . . Highest Corruption 2 | . . . . . 2 Average Corruption 2 | . . . . . 2 Corruption Purged . | . . . . . . Corruption Blocked . | . . . . . . Effects 1 | . . . . . 1 Message Errors 1 | . . . . . 1 Overload Shots . | . . . . . . Overflow Damage . | . . . . . . Projectiles . | . . . . . . Explosions . | . . . . . . Melee . | . . . . . . Knockbacks . | . . . . . . Impact . | . . . . . . Kinetic . | . . . . . . Secondary . | . . . . . . Self-Inflicted Damage 55 | . . . . . 55 Shots 2 | . . . . . 2 Rammed . | . . . . . . Targets Rammed . | . . . . . . Kicked . | . . . . . . Crushed . | . . . . . . Highest Temperature 288 | . 19 5 288 165 173 Average Temperature 65 | . 9 5 70 64 67 Received Heat Transfer 630 | . 231 114 225 60 . Siege Activations . | . . . . . . Martial Activations . | . . . . . . Shielding Activations . | . . . . . . Robots Disrupted . | . . . . . . Combat Hostiles . | . . . . . . Robots Corrupted . | . . . . . . Combat Hostiles . | . . . . . . Parts Fried . | . . . . . . Impact Corruptions . | . . . . . . Robots Melted . | . . . . . . Combat Hostiles . | . . . . . . Parts Melted 11 | . . . 8 3 . Heat Transferred 4869 | . . . 2982 1887 . Parts Sabotaged . | . . . . . . Parts Stolen . | . . . . . . Parts Stripped . | . . . . . . Power Chain Reactions . | . . . . . . Latent Energy Used 122 | . . . . . 122 LE Corruption 2 | . . . . . 2 Alert | -11 -10 -10 -9 -9 -9 ------- Run | Yrd Mat Min Mat Min Exi Maximum Alert Level . | . . . . . . Low Security (%) 100 | 100 100 100 100 100 . Level 1 . | . . . . . . Level 2 . | . . . . . . Level 3 . | . . . . . . Level 4 . | . . . . . . Level 5 . | . . . . . . High Security . | . . . . . . Max Security . | . . . . . . Peak Influence 193 | 5 103 50 193 167 . Initial 40 | . 3 25 . 40 . Average 72 | 1 37 13 107 76 . Influence Increases 1530 | 15 330 50 750 385 . Destroy 0b10 Robot/C 1080 | . 200 40 520 320 . Destroy 0b10 Robot/NC 85 | 15 25 . 45 . . Destroy Leader 250 | . 46 10 144 50 . Successful Hack 69 | . 29 . 40 . . Select Force Hacks 30 | . 30 . . . . Destroy Structure 1 | . . . 1 . . Lose Combat Pursuer 15 | . . . . 15 . Influence Decreases 1530 | 10 270 115 644 491 . Entered New Map 108 | . 2 40 . 66 . Time Decay 1212 | 10 238 75 474 415 . Lost Part 60 | . 30 . 20 10 . Purge Threat 150 | . . . 150 . . Squads Dispatched 3 | . 2 . 1 . . Investigation 1 | . 1 . . . . Extermination . | . . . . . . Reinforcement 2 | . 1 . 1 . . Assault . | . . . . . . Garrison . | . . . . . . Intercept . | . . . . . . Searches Triggered . | . . . . . . Construction Impeded . | . . . . . . Haulers Reinforced . | . . . . . . Active Scanning Responses . | . . . . . . Cargo Convoy Interrupts . | . . . . . . Stealth | -11 -10 -10 -9 -9 -9 --------- Run | Yrd Mat Min Mat Min Exi Distress Signals . | . . . . . . Communications Jammed . | . . . . . . Distress Signals . | . . . . . . Times Spotted 83 | . 17 2 39 17 8 Peak Tracking Total 10 | . 3 2 4 3 10 Tactical Retreats 2 | . . . . 1 1 Traps | -11 -10 -10 -9 -9 -9 ------- Run | Yrd Mat Min Mat Min Exi Traps Triggered . | . . . . . . Indirectly . | . . . . . . Trap Hack Attempts . | . . . . . . Triggered . | . . . . . . Disarmed . | . . . . . . Reprogrammed . | . . . . . . Reused . | . . . . . . Traps Extracted . | . . . . . . Installed . | . . . . . . Triggered . | . . . . . . Machines | -11 -10 -10 -9 -9 -9 ---------- Run | Yrd Mat Min Mat Min Exi Machines Disabled 5 | . . . . . 5 Max in Single Turn 2 | . . . . . 2 Machines Repaired . | . . . . . . Machines Dismantled . | . . . . . . Machines Sabotaged . | . . . . . . Overloaded Fab Kills . | . . . . . . Hacking | -11 -10 -10 -9 -9 -9 --------- Run | Yrd Mat Min Mat Min Exi Machines Accessed 18 | . 6 . 11 . 1 Terminals 13 | . 5 . 8 . . Fabricators . | . . . . . . Repair Stations . | . . . . . . Recycling Units 3 | . 1 . 2 . . Scanalyzers 1 | . . . 1 . . Garrison Access . | . . . . . . Total Hacks 52 | . 17 . 34 . 1 Successful 28 | . 11 . 16 . 1 Failed 24 | . 6 . 18 . . Catastrophic 3 | . 2 . 1 . . Database Lockouts . | . . . . . . Manual 40 | . 16 . 23 . 1 Terminals 40 | . 15 . 25 . . Fabricators . | . . . . . . Repair Stations . | . . . . . . Recycling Units 7 | . 2 . 5 . . Scanalyzers 4 | . . . 4 . . Garrison Access . | . . . . . . Terminal Hacks 9 | . 3 . 5 . 1 Terminal Index 1 | . 1 . . . . Unreport Threat 1 | . . . 1 . . Zone Layout 6 | . 2 . 4 . . Proto ID Catalog 1 | . . . . . 1 Fabricator Hacks . | . . . . . . Repair Station Hacks . | . . . . . . Recycling Unit Hacks 3 | . 1 . 2 . . Retrieve Components 3 | . 1 . 2 . . Scanalyzer 3 | . . . 3 . . Retrieve Study 3 | . . . 3 . . Garrison Access Hacks . | . . . . . . Unauthorized Hacks 13 | . 7 . 6 . . Terminals 12 | . 6 . 6 . . Operators 2 | . 1 . 1 . . Skim 10 | . 5 . 5 . . Fabricators . | . . . . . . Repair Stations . | . . . . . . Recycling Units 1 | . 1 . . . . Tunnel 1 | . 1 . . . . Scanalyzers . | . . . . . . Garrison Access . | . . . . . . Data Cores Recovered 1 | . 1 . . . . Used . | . . . . . . Hacking Detections 14 | . 5 . 9 . . Full Trace Events . | . . . . . . Feedback Events . | . . . . . . Feedback Blocked . | . . . . . . Robot Schematics Acquired . | . . . . . . Robots Built . | . . . . . . Authchips . | . . . . . . Time . | . . . . . . Total Robot Build Rating . | . . . . . . Part Schematics Acquired . | . . . . . . Parts Built . | . . . . . . Authchips . | . . . . . . Time . | . . . . . . Total Part Build Rating . | . . . . . . Part Studies Acquired 3 | . . . 3 . . Parts Repaired . | . . . . . . Time . | . . . . . . Parts Recycled . | . . . . . . Recycled Matter . | . . . . . . Retrieved Matter . | . . . . . . Retrieved Components 23 | . 9 . 14 . . Parts Scanalyzed . | . . . . . . Part Schematics Acquired . | . . . . . . Parts Damaged . | . . . . . . Bothacking | -11 -10 -10 -9 -9 -9 ------------ Run | Yrd Mat Min Mat Min Exi Used RIF Installer . | . . . . . . Robots Hacked 5 | . . . . . 5 Non-combat 3 | . . . . . 3 Combat 2 | . . . . . 2 Robot Hacks Applied 5 | . . . . . 5 parse_system 5 | . . . . . 5 Relay Couplers Released . | . . . . . . Fabnet Peak Effective % . | . . . . . . Robots Rewired . | . . . . . . Allies Hacked . | . . . . . . Hacks Repelled . | . . . . . . Allies | -11 -10 -10 -9 -9 -9 -------- Run | Yrd Mat Min Mat Min Exi Total Allies . | . . . . . . Largest Group . | . . . . . . Highest-Rated Group . | . . . . . . Highest-Rated Ally . | . . . . . . Total Orders . | . . . . . . Ally Attacks . | . . . . . . Total Damage . | . . . . . . Kills . | . . . . . . Allies Corrupted . | . . . . . . Allies Melted . | . . . . . . Intel | -11 -10 -10 -9 -9 -9 ------- Run | Yrd Mat Min Mat Min Exi Active Infowar (turns) 3053 | 35 653 . 1211 1104 50 Traps 2365 | . . . 1211 1104 50 Seismic 688 | 35 653 . . . . Robot Analysis Total . | . . . . . . Derelict Logs Recovered 2 | . . 1 . 1 . Drone Launches . | . . . . . . Drone Recoveries . | . . . . . . Exploration | -11 -10 -10 -9 -9 -9 ------------- Run | Yrd Mat Min Mat Min Exi Turns Passed 4910 | 111 905 252 1416 1104 1122 Spaces Moved 2516 | 57 505 193 732 541 488 Core 13 | 13 . . . . . Treads 1725 | 44 326 . 427 541 387 Legs . | . . . . . . Wheels 778 | . 179 193 305 . 101 Hover . | . . . . . . Flight . | . . . . . . Fastest Speed 50 | 50 100 100 115 160 130 Average Speed 158 | 134 138 110 152 180 184 Slowest Speed 200 | 160 160 115 200 200 200 Overloaded Moves . | . . . . . . Propulsion Burnouts . | . . . . . . Robots Hopped . | . . . . . . Potential Cave-ins . | . . . . . . Cave-ins Triggered . | . . . . . . Exploration Rate (%) 61 | 5 74 61 67 96 67 Regions Visited 5 Branch Regions 3 Pre-discovered Areas 6 | . 2 . 3 1 . Known Exits Taken 2 | . 1 1 . . . Unknown Exits Taken 3 | 1 . . 1 1 . Scrap Searched 2 | . . 1 . 1 . Spaces Dug . | . . . . . . Terrain Destroyed 54 | . . . . . 54 Melee . | . . . . . . Projectile . | . . . . . . AOE 54 | . . . . . 54 Terrain Rammed . | . . . . . . Walls Destroyed . | . . . . . . Machines Disabled . | . . . . . . Actions | -11 -10 -10 -9 -9 -9 --------- Run | Yrd Mat Min Mat Min Exi Total 3029 | 82 606 214 896 607 624 Wait 105 | 3 9 9 32 29 23 Move 2511 | 56 504 192 731 540 488 Hop . | . . . . . . Pick Up 64 | 10 13 1 25 3 12 Fast Attach 6 | 1 . . 5 . . Attach 24 | 6 3 1 5 1 8 Detach 2 | . . . . . 2 Swap 22 | 1 4 1 7 2 7 Drop 47 | . 7 . 21 2 17 Fire 243 | 5 66 10 70 30 62 Melee 5 | . . . . . 5 Ram . | . . . . . . Kick . | . . . . . . Crush . | . . . . . . Escape Stasis . | . . . . . . Rewire . | . . . . . . Trap . | . . . . . . Miscellaneous . | . . . . . . Route ------- -11/Scrapyard -10/Materials (discovered 5 exits: *Mat x3 / *Min / Sub) -10/Mines (discovered 2 exits: *Mat / Sub) -9/Materials (discovered 3 exits: *Mat x2 / [*Min]) -9/Mines (discovered 3 exits: *Mat x2 / *Exi) -9/Exiles History --------- Turn | Location | Event 29 | -11/Scrapyard | Discovered new exit (range 15) 112 | -11/Scrapyard | Entered Materials 251 | -10/Materials | Discovered new exit (range 5) 303 | -10/Materials | Build established: Mutant 424 | -10/Materials | Discovered new exit (range 15) 764 | -10/Materials | Core integrity fell below 50% 802 | -10/Materials | Discovered new exit (range 11) 821 | -10/Materials | Lost 3 parts (1n1u1w) 824 | -10/Materials | Discovered new exit (range 13) 872 | -10/Materials | Learned location of Mines (-8) 909 | -10/Materials | Learned Storage trap positions 934 | -10/Materials | Loaded intel: 7 terminal locations 948 | -10/Materials | Learned Storage stockpile data 952 | -10/Materials | Learned location of 2 exits from Mines 953 | -10/Materials | Identified exit to Mines 953 | -10/Materials | Identified exit to Materials 953 | -10/Materials | Identified exit to Subcaves 1017 | -10/Materials | Entered Mines 1097 | -10/Mines | Core integrity fell below 20% 1210 | -10/Mines | Learned Materials terminal intel 1269 | -10/Mines | Entered Materials 1269 | -9/Materials | Evolved 2 slots: Utility x2 1270 | -9/Materials | Loaded intel: 12 terminal locations 1739 | -9/Materials | Discovered new exit (range 12) 1940 | -9/Materials | Learned Storage emergency access door positions 1980 | -9/Materials | Identified exit to Materials 2026 | -9/Materials | Learned location of Zion (-6) 2043 | -9/Materials | Learned 4 Recycling zone layouts 2062 | -9/Materials | Learned 4 Recycling zone layouts 2128 | -9/Materials | Learned Storage terminal intel 2227 | -9/Materials | Discovered exit to Materials (range 23) 2685 | -9/Materials | Entered Mines 2692 | -9/Mines | Received a Rocket Launcher from a helpful Derelict 2707 | -9/Mines | Met a Derelict bent on vengeance 3050 | -9/Mines | Learned location of Storage (-7) 3315 | -9/Mines | Discovered exit to Materials (range 3) 3545 | -9/Mines | Learned Materials garrison access intel 3559 | -9/Mines | Discovered exit to Materials (range 5) 3781 | -9/Mines | Deemed a non-threat by the Exiles lab entrance 3781 | -9/Mines | Discovered new exit (range 5) 3789 | -9/Mines | Entered Exiles 3848 | -9/Exiles | Met 8R-AWN 3923 | -9/Exiles | Met EX-HEX 4026 | -9/Exiles | Met EX-DEC 4191 | -9/Exiles | Met EX-BIN 4207 | -9/Exiles | Aligned with FarCom system 4208 | -9/Exiles | Given EX-Vault access code 4244 | -9/Exiles | Opened EX-Vault 4258 | -9/Exiles | Found Latent Energy Streamer 4263 | -9/Exiles | Found AWS/Gauss 4275 | -9/Exiles | Found Deploy-a-Sentry 4278 | -9/Exiles | Found Deploy-a-Sentry 4282 | -9/Exiles | Found Deploy-a-Sentry 4322 | -9/Exiles | Warned to stay clear of 0b10 Research branches 4687 | -9/Exiles | Attacked by the Exiles 4724 | -9/Exiles | Core integrity fell below 50% 4861 | -9/Exiles | Core integrity fell below 20% 4862 | -9/Exiles | Lost 8 parts (2n3u3w) 4911 | -9/Exiles | Destroyed by 8R-AWN with 8R-AWN's Boregun Last Messages --------------- 04851_ HV Slug penetrates Wall. 04851_ Penetrated by HV Slug. 04864_ Machine disabled. 04864_ Penetrated by HV Slug. 04881_ Hvy. Assault Rifle destroyed. 04881_ HV Slug penetrates Wall. 04885_ Penetrated by HV Slug. 04885_ Lgt. Assault Rifle destroyed. 04889_ Penetrated by HV Slug. 04889_ HV Slug penetrates Wall. 04889_ HV Slug penetrates Earth. 04894_ Penetrated by HV Slug. 04894_ HV Slug penetrates Earth. 04898_ Penetrated by HV Slug. 04899_ KHMGTSN /XEFN709JK:NL9LTN 04902_ Penetrated by HV Slug. 04906_ HV Slug penetrates Earth. 04909_ The unstable cave ceiling collapses. 04911_ HV Slug penetrates Earth. 04911_ Penetrated by HV Slug. Map ----- +----------------------------------------------------+ | ?????????????????????????????????????????????????? | | ?????????????????????????????????????????????????? | | ?????????????????????????????????????????????????? | | ?????????????????????????????????????????????????? | | ?????????????????????????????????????????????????? | | ?????????????????????????????????????????????????? | | ?????????????????????????????????????????????????? | | ?????????????????????????????????????????????????? | | ?????????????????????????????????????????????????? | | ?????????????????????????????????????????????????? | | ?????????????????????????????#######?????????????? | | ??????????????? ######???????#!!! "#?????????????? | | ??????????????? #""#??????# "#?????????????? | | ??????????????? ??????# "#?????????????? | | ?????????????? #????## ""#?????????????# | | ?????????????? #####" ""#????????????? | | ??????????????? ##" ""###??????????" | | ???????????????? #" # ##?????????" | | ??????????????????# # #????????"" | | ?????????????????????# # #????????"" | | ?????????????????????#;; # #???????? | | ???????????????#######; # # #?????????" | | ???????????????# !!"" # ##????????# | | ???????????????# !g # ####???### | | ???????????????# ! """##### # | | ???????????????# @ | | ???????????????# """" ; ; ## | | ???????????????######## # # ##### | | ?????????????????????# # # #????# | | ?????????????????????# ?# #?#??????### | | ????????????????????? ??# #??????????## | | ????????????????????#???# #???????????## | | ????????????????????????# #????????????##" | | ????????????????????????# #?????????????#""" | | ????????????????????????? ?????????????##" | | ????????????????????????? ?????????????#"" | | ????????????????????????? ????????????##""" | | ????????????????????????? ????????????#""" | | ????????????????????????? ????????????#""" | | ????????????????????????? ????????????#"" | | ????????????????????????? ????????????#""" | | ??????????????????????????????????????#"" | | ??????????????????????????????????????##"" | | ???????????????????????????????????????#"""" | | ???????????????????????????????????????## | | ????????????????????????????????????????#" | | ????????????????????????????????????????#"""" | | ????????????????????????????????????????#"" | | ????????????????????????????????????????#" | | ?????????????????????????????????????????""" | +----------------------------------------------------+ Best States ------------- Heat Dissipation 42 Energy Generation 12 Energy Capacity 265 Matter Stores 300 Matter Capacity 300 Sight Range 16 Terrain Scan Density 10 Armor Coverage 450 Evasion (%) 50 Recoil Reduction 2 Item Schematics ----------------- None Robot Schematics ------------------ None Fabricated ------------ Nothing Repaired ---------- Nothing Studied --------- Lgt. Treads | -9/Materials | Hacked Spread Laser | -9/Materials | Hacked Autogun | -9/Materials | Hacked Alien Tech Used ----------------- None Achievements -------------- None Challenges ------------ None Game ------ Seed ChargePiercingDeconstructor Manual? 0 Play Time 00:27:41 Cumulative 454.4 hours Start 2025.11.01 @ 07:47:25 End 2025.11.01 @ 08:11:38 Sessions 1 Manual Loads 0 Difficulty Rogue Special Mode None Game No. 576 Rogue 576 Adventurer 0 Explorer 0 Win Type - Total 14 Types 6/0/2/2/1/0/2/1/0/0 Lore% 90 Gallery% 85 Achievement% 61 Wizard Run 0 Options --------- Layout 0 ASCII 0 Keyboard 0 Movement Mouse Keybinds 0 Fullscreen 1 Font 24/Terminus Map View 76x50 Zoom Use 0% Tactical HUD 1 Map Filters NONE Filters NONE Steam 1 RUN: f8d1a1db-74a4-4dc1-884f-fd7cff92130a